Cogmind - Beta 13 @@@ ROGUE MODE // 2024.06.10 @ 12:02:16 Player: JackZewap Result: Destroyed by G-47 Trooper with Particle Gun Performance ------------- Evolutions (2) 1000 Regions Visited (3) 600 Robots Destroyed (90) 450 Value Destroyed (2412) 2412 Prototype IDs (10) 200 Alien Tech Used (0) 0 Bonus (221) 221 TOTAL SCORE: 4883 Bonus ------- High Alert Combat Kills 221 Cogmind --------- Core Integrity 0/550 Matter 46/300 Energy 160/160 System Corruption 1% Temperature Warm (133) Movement Treading (157) Location -8/Materials Parts ------- > --- POWER (1) -------- Light Nuclear Core > --- PROPULSION (2) --- Armored Treads Advanced Treads > --- UTILITY (6) ------ Improved Heat Sink Recoil Stabilizer Medium Armor Plating Reflective Plating Hacking Suite Dynamic Insulation System > --- WEAPON (2) ------- Gauss Cannon Gauss Cannon > --- INVENTORY (5) ---- Transport Network Coupler Recoil Stabilizer Medium Armor Plating Reactive Plating Graphene Brace Peak State ------------ > --- POWER ------------ (None) > --- PROPULSION ------- Armored Treads Armored Treads > --- UTILITY ---------- Active Sensor Suite Light Armor Plating Hardened Heavy Armor Plating > --- WEAPON ----------- Light Assault Rifle Heavy Mace > --- INVENTORY -------- Improved Heat Sink Reactive Plating Reflective Plating Hacking Suite [Rating: 47] Favorites ----------- Power Light Nuclear Core Engine Light Ion Engine Power Core Light Nuclear Core Propulsion Light Treads Treads Light Treads Leg Titanium Leg Utility Transport Network Coupler Device Dynamic Insulation System Storage Medium Storage Unit Processor Transport Network Coupler Hackware Hacking Suite Protection Reflective Plating Weapon Minigun Energy Gun Small Laser Ballistic Gun Minigun Ballistic Cannon Flak Cannon Impact Weapon Heavy Mace Build | -11 -10 -9 -8 ------- Run | Yrd Mat Mat Mat Slots Evolved 4 | . . 2 2 Power . | . . . . Propulsion . | . . . . Utility 4 | . . 2 2 Weapon . | . . . . Parts Attached 90 | 6 12 15 57 Power 10 | 1 . 2 7 Engine 5 | 1 . 2 2 Core 5 | . . . 5 Reactor . | . . . . Propulsion 17 | 2 3 4 8 Treads 14 | 2 3 4 5 Leg 3 | . . . 3 Wheel . | . . . . Hover . | . . . . Flight . | . . . . Utility 33 | 1 5 2 25 Device 13 | . 1 . 12 Storage 2 | 1 1 . . Processor 6 | . 2 1 3 Hackware 1 | . . . 1 Protection 11 | . 1 1 9 Artifact . | . . . . Weapon 30 | 2 4 7 17 Energy Gun 6 | 2 2 2 . Energy Cannon . | . . . . Ballistic Gun 17 | . 2 5 10 Ballistic Cannon 6 | . . . 6 Launcher . | . . . . Special Weapon . | . . . . Impact Weapon 1 | . . . 1 Slashing Weapon . | . . . . Piercing Weapon . | . . . . Special Melee Weapon . | . . . . Unidentified Prototypes 2 | . . 1 1 Parts Lost 22 | . . 6 16 Power 4 | . . 1 3 Propulsion 6 | . . 3 3 Utility 6 | . . . 6 Weapon 6 | . . 2 4 Highest Loss Streak 8 | . . 4 8 To Critical Strikes 1 | . . . 1 Average Slot Usage (%) 93 | . 98 81 95 Engine 6 | . 14 10 3 Core 3 | . . . 5 Treads 16 | . 28 15 12 Leg 3 | . . . 4 Device 18 | . 1 11 25 Storage 2 | . 12 . . Processor 13 | . 6 18 14 Protection 8 | . 6 3 10 Energy Gun 3 | . 14 1 . Ballistic Gun 13 | . 12 20 11 Ballistic Cannon 3 | . . . 5 Naked Turns . | . . . . Heaviest Build 36 | 11 19 17 36 Greatest Support 42 | 40 40 40 42 Greatest Overweight (x) 5 | . . 3 5 Average Overweight (x) . | . . . . Largest Inventory Capacity 10 | 8 10 5 5 Average Capacity 5 | 6 9 5 5 Most Carried 6 | . 6 5 5 Average Carried 4 | . 3 4 4 Final Capacity 8 | 8 5 5 5 Final Carried 5 | . 5 5 5 Class Distribution -------------------- 42% | Scavenger-Mutant 33% | Mutant 11% | Scavenger-Skirmisher 10% | Skirmisher Dominant Class ---------------- Mutant | -10/Materials Scavenger-Mutant | -9/Materials Scavenger-Mutant | -8/Materials Resources | -11 -10 -9 -8 ----------- Run | Yrd Mat Mat Mat Matter Collected 2261 | 219 188 312 1542 Remotely . | . . . . Salvage Created 3125 | . 421 756 1948 Parts 183 | . 20 54 109 Haulers Intercepted 10 | . 2 3 5 Recyclers Shooed . | . . . . Parts Field Recycled . | . . . . Retrieved Matter . | . . . . Parts Self-Destructed . | . . . . Prevented . | . . . . Kills | -11 -10 -9 -8 ------- Run | Yrd Mat Mat Mat Combat Hostiles Destroyed 65 | . 7 20 38 Melee 2 | . . . 2 Guns 45 | . 7 20 18 Cannons 17 | . . . 17 Classes Destroyed 12 | . 5 3 4 Worker 6 | . . 1 5 Builder 1 | . . 1 . Hauler 10 | . 2 3 5 Recycler 1 | . 1 . . Operator 3 | . . . 3 Watcher 4 | . 1 . 3 Swarmer 19 | . 3 11 5 Grunt 30 | . 4 6 20 Brawler 1 | . . . 1 Sentry 12 | . . 3 9 Specialist 1 | . . . 1 Hunter 2 | . . . 2 Best Kill Streak 8 | . 6 8 3 Combat Bots Only 6 | . 6 6 3 Max Kills in Single Turn 2 | . 1 2 2 Gunslinging 1 | . . 1 . Exploded . | . . . . Melee 1 | . . . 1 Uniques/NPCs Destroyed . | . . . . Combat | -11 -10 -9 -8 -------- Run | Yrd Mat Mat Mat Hostile Shots Fired 582 | . 25 93 464 Missed 176 | . 8 21 147 Damage Taken 4813 | . 176 722 3915 Core 676 | . 22 97 557 Absorbed by Shields . | . . . . Ignored by Resistances 402 | . . . 402 Regen/Repaired (Parts) 314 | . . . 314 Core Remaining (%) 88 | 100 91 75 . Volleys Fired 271 | . 35 58 178 Largest 2 | . 2 2 2 Hottest 96 | . 90 60 96 Shots Fired 503 | . 69 103 331 Gun 396 | . 69 103 224 Cannon 107 | . . . 107 Launcher . | . . . . Special . | . . . . Kinetic 433 | . 10 92 331 Thermal 70 | . 59 11 . Explosive . | . . . . Electromagnetic . | . . . . Robot Hit Streak 15 | . 14 15 14 Robot Miss Streak 11 | . 4 6 11 Penetration Max . | . . . . Secondary Targets 3 | . . 2 1 Max Gunslinging Chain 1 | . . 1 1 Shots Hit Robots 365 | . 47 73 245 Core Hits 179 | . 20 41 118 Critical Kills 1 | . . . 1 Critical Parts Destroyed 2 | . . . 2 Critical Strikes 10 | . 3 . 7 Burn 3 | . 3 . . Destroy 4 | . . . 4 Blast 3 | . . . 3 Melee Attacks 6 | . . . 6 Impact 6 | . . . 6 Slashing . | . . . . Piercing . | . . . . Sneak Attacks . | . . . . Combat Hostiles . | . . . . Follow-up Attacks . | . . . . Damage Inflicted 5725 | . 541 853 4331 Guns 3824 | . 541 853 2430 Cannons 1675 | . . . 1675 Explosions . | . . . . Melee 219 | . . . 219 Ramming 7 | . . . 7 Kinetic 4922 | . 30 787 4105 Thermal 577 | . 511 66 . Explosive . | . . . . Electromagnetic . | . . . . Impact 219 | . . . 219 Slashing . | . . . . Piercing . | . . . . Highest Corruption 1 | . . . 1 Average Corruption 1 | . . . 1 Corruption Purged . | . . . . Corruption Blocked . | . . . . Effects 10 | . . . 10 Message Errors 2 | . . . 2 Matter Fused 4 | . . . 4 Heat Flow Errors 1 | . . . 1 Energy Discharges 1 | . . . 1 Parts Rejected 1 | . . . 1 Data Loss (minor) 1 | . . . 1 Overload Shots . | . . . . Overflow Damage 62 | . . . 62 Projectiles 26 | . . . 26 Explosions . | . . . . Melee 36 | . . . 36 Knockbacks 31 | . . . 31 Impact . | . . . . Kinetic 27 | . . . 27 Secondary 4 | . . . 4 Self-Inflicted Damage . | . . . . Shots . | . . . . Rammed 2 | . . . 2 Targets Rammed 5 | . . . 5 Kicked 3 | . . . 3 Crushed . | . . . . Highest Temperature 376 | . 376 22 172 Average Temperature 65 | . 121 8 39 Received Heat Transfer 1443 | . 69 156 1218 Effects 2 | . 2 . . Shutdowns 1 | . 1 . . Matter Decay 1 | . 1 . . Siege Activations . | . . . . Robots Corrupted . | . . . . Combat Hostiles . | . . . . Parts Fried . | . . . . Impact Corruptions 2 | . . . 2 Robots Melted 1 | . 1 . . Combat Hostiles . | . . . . Parts Melted 11 | . 11 . . Heat Transferred 1748 | . 1598 150 . Parts Sabotaged . | . . . . Parts Stolen . | . . . . Parts Stripped . | . . . . Power Chain Reactions . | . . . . Alert | -11 -10 -9 -8 ------- Run | Yrd Mat Mat Mat Peak Influence 799 | . 208 385 799 Initial 162 | . . 30 162 Average 337 | . 89 261 438 Maximum Alert Level 3 | . 1 1 3 Low Security (%) 31 | 100 93 27 11 Level 1 35 | . 6 72 35 Level 2 25 | . . . 40 Level 3 8 | . . . 13 Level 4 . | . . . . Level 5 . | . . . . High Security . | . . . . Max Security . | . . . . Squads Dispatched 13 | . 1 2 10 Investigation 3 | . . 1 2 Extermination . | . . . . Reinforcement 8 | . 1 1 6 Assault . | . . . . Garrison 2 | . . . 2 Intercept . | . . . . Searches Triggered . | . . . . Construction Impeded . | . . . . Haulers Reinforced . | . . . . Active Scanning Responses . | . . . . Cargo Convoy Interrupts . | . . . . Stealth | -11 -10 -9 -8 --------- Run | Yrd Mat Mat Mat Distress Signals 8 | . 2 2 4 Communications Jammed . | . . . . Distress Signals . | . . . . Times Spotted 110 | . 12 30 68 Peak Tracking Total 8 | . 4 8 8 Tactical Retreats 9 | . . 3 6 Traps | -11 -10 -9 -8 ------- Run | Yrd Mat Mat Mat Traps Triggered 4 | . 2 1 1 Indirectly . | . . . . Trap Hack Attempts . | . . . . Triggered . | . . . . Disarmed . | . . . . Reprogrammed . | . . . . Reused . | . . . . Traps Extracted . | . . . . Installed . | . . . . Triggered . | . . . . Machines | -11 -10 -9 -8 ---------- Run | Yrd Mat Mat Mat Machines Disabled 1 | . . . 1 Max in Single Turn 1 | . . . 1 Garrison Access 1 | . . . 1 Machines Repaired . | . . . . Machines Dismantled . | . . . . Machines Sabotaged . | . . . . Overloaded Fab Kills . | . . . . Hacking | -11 -10 -9 -8 --------- Run | Yrd Mat Mat Mat Machines Accessed 16 | . 3 2 11 Terminals 13 | . 3 2 8 Fabricators . | . . . . Repair Stations 2 | . . . 2 Recycling Units . | . . . . Scanalyzers . | . . . . Garrison Access 1 | . . . 1 Total Hacks 51 | . 11 4 36 Successful 28 | . 6 3 19 Failed 23 | . 5 1 17 Catastrophic 2 | . . . 2 Database Lockouts . | . . . . Manual 28 | . 6 3 19 Terminals 43 | . 11 4 28 Fabricators . | . . . . Repair Stations 6 | . . . 6 Recycling Units . | . . . . Scanalyzers . | . . . . Garrison Access 2 | . . . 2 Terminal Hacks 12 | . 4 1 7 Robot Analysis 3 | . 1 . 2 Prototype ID Bank 4 | . 1 . 3 Locate Traps 1 | . 1 . . Hauler Manifests 4 | . 1 1 2 Fabricator Hacks . | . . . . Repair Station Hacks 5 | . . . 5 Scan Component 3 | . . . 3 Repair 2 | . . . 2 Recycling Unit Hacks . | . . . . Scanalyzer . | . . . . Garrison Access Hacks 1 | . . . 1 Seal Access 1 | . . . 1 Unauthorized Hacks 10 | . 2 2 6 Terminals 10 | . 2 2 6 Botnet 10 | . 2 2 6 Fabricators . | . . . . Repair Stations . | . . . . Recycling Units . | . . . . Scanalyzers . | . . . . Garrison Access . | . . . . Data Cores Recovered . | . . . . Used . | . . . . Hacking Detections 15 | . 3 2 10 Full Trace Events 2 | . . . 2 Feedback Events 1 | . . . 1 Corruption 1 | . . . 1 Feedback Blocked . | . . . . Robot Schematics Acquired . | . . . . Robots Built . | . . . . Authchips . | . . . . Time . | . . . . Total Robot Build Rating . | . . . . Part Schematics Acquired . | . . . . Parts Built . | . . . . Authchips . | . . . . Time . | . . . . Total Part Build Rating . | . . . . Parts Repaired 2 | . . . 2 Time 76 | . . . 76 Parts Recycled . | . . . . Recycled Matter . | . . . . Retrieved Matter . | . . . . Retrieved Components . | . . . . Parts Scanalyzed . | . . . . Part Schematics Acquired . | . . . . Parts Damaged . | . . . . Bothacking | -11 -10 -9 -8 ------------ Run | Yrd Mat Mat Mat Used RIF Installer . | . . . . Robots Hacked . | . . . . Non-combat . | . . . . Combat . | . . . . Robot Hacks Applied . | . . . . Relay Couplers Released . | . . . . Fabnet Peak Effective % . | . . . . Robots Rewired . | . . . . Allies Hacked . | . . . . Hacks Repelled . | . . . . Allies | -11 -10 -9 -8 -------- Run | Yrd Mat Mat Mat Total Allies . | . . . . Largest Group . | . . . . Highest-Rated Group . | . . . . Highest-Rated Ally . | . . . . Total Orders . | . . . . Ally Attacks . | . . . . Total Damage . | . . . . Kills . | . . . . Allies Corrupted . | . . . . Allies Melted . | . . . . Intel | -11 -10 -9 -8 ------- Run | Yrd Mat Mat Mat Robot Analysis Total 3 | . 1 . 2 Derelict Logs Recovered . | . . . . Drone Launches . | . . . . Drone Recoveries . | . . . . Exploration | -11 -10 -9 -8 ------------- Run | Yrd Mat Mat Mat Turns Passed 4800 | 79 917 748 3056 Spaces Moved 2200 | 47 483 335 1335 Core 37 | 4 . 32 1 Treads 1840 | 43 483 303 1011 Legs 323 | . . . 323 Wheels . | . . . . Hover . | . . . . Flight . | . . . . Fastest Speed 50 | 50 160 100 110 Average Speed 162 | 150 160 155 166 Slowest Speed 300 | 160 160 200 300 Overloaded Moves . | . . . . Propulsion Burnouts . | . . . . Robots Hopped . | . . . . Cave-ins Triggered . | . . . . Exploration Rate (%) 52 | 4 78 37 90 Regions Visited 3 Branch Regions . Pre-discovered Areas . | . . . . Known Exits Taken . | . . . . Unknown Exits Taken 3 | 1 1 1 . Scrap Searched . | . . . . Spaces Dug . | . . . . Terrain Destroyed 8 | . . . 8 Melee . | . . . . Projectile 8 | . . . 8 AOE . | . . . . Terrain Rammed . | . . . . Walls Destroyed . | . . . . Machines Disabled . | . . . . Actions | -11 -10 -9 -8 --------- Run | Yrd Mat Mat Mat Total 2949 | 52 558 470 1869 Wait 296 | . 18 50 228 Move 2197 | 46 482 334 1335 Hop . | . . . . Pick Up 26 | . 5 3 18 Fast Attach 57 | 6 9 10 32 Attach 12 | . 2 1 9 Detach 11 | . 4 1 6 Swap 21 | . 1 4 16 Drop 47 | . 2 9 36 Fire 271 | . 35 58 178 Melee 6 | . . . 6 Ram . | . . . . Kick 3 | . . . 3 Crush 2 | . . . 2 Escape Stasis . | . . . . Rewire . | . . . . Trap . | . . . . Miscellaneous . | . . . . Route ------- -11/Scrapyard -10/Materials (discovered 3 exits: *Mat x2 / [*Min]) -9/Materials (discovered 2 exits: *Mat / [*Min]) -8/Materials (discovered 2 exits: [*Fac x2]) History --------- Turn | Location | Event 5 | -11/Scrapyard | Discovered new exit (range 15) 80 | -11/Scrapyard | Entered Materials 273 | -10/Materials | Discovered new exit (range 12) 305 | -10/Materials | Build established: Mutant 728 | -10/Materials | Discovered new exit (range 8) 824 | -10/Materials | Discovered new exit (range 10) 997 | -10/Materials | Entered another Materials area 997 | -9/Materials | Evolved 2 slots: Utility x2 1234 | -9/Materials | Lost 4 parts (2n2w) 1373 | -9/Materials | Discovered new exit (range 8) 1724 | -9/Materials | Discovered new exit (range 12) 1745 | -9/Materials | Entered another Materials area 1745 | -8/Materials | Evolved 2 slots: Utility x2 2047 | -8/Materials | Build established: Scavenger-Skirmisher 2129 | -8/Materials | Lost 3 parts (2u1w) 2479 | -8/Materials | Garrison activated, responded to threat 2775 | -8/Materials | Garrison activated, responded to threat 2905 | -8/Materials | Repaired Reactive Plating 3095 | -8/Materials | Repaired Reactive Plating 3153 | -8/Materials | Discovered new exit (range 4) 3188 | -8/Materials | Core integrity fell below 50% 3212 | -8/Materials | Found Prototype Device 3212 | -8/Materials | Identified Active Sensor Suite 3231 | -8/Materials | Lost 8 parts (1p2n3u2w) 3436 | -8/Materials | Core integrity fell below 20% 3562 | -8/Materials | Build established: Scavenger-Mutant 3842 | -8/Materials | Discovered new exit (range 9) 4801 | -8/Materials | Destroyed by G-47 Trooper with Particle Gun Last Messages --------------- 04765_ Acquired Graphene Brace. 04767_ Acquired Med. Armor Plating. 04772_ W-25 Informer sends out distress signal. 04772_ W-25 Informer suffers critical hit (Blast). 04772_ Destroyed Imp. Signal Interpreter. 04772_ W-25 Informer destroyed. 04778_ Slug penetrates Y-45 Defender. 04778_ Y-45 Defender destroyed. 04778_ Slug penetrates Wall. 04779_ U-05 Engineer builds a Wall. 04780_ ALERT: Hostiles spotted, dispatching reinforcements to Terminal M005. 04784_ Slug penetrates Wall. 04784_ G-47 Trooper destroyed. 04788_ U-05 Engineer builds a Door. 04791_ U-05 Engineer builds a Wall. 04793_ G-47 Trooper knocked back. 04795_ U-05 Engineer builds a Door. 04796_ G-47 Trooper knocked back. 04800_ U-05 Engineer builds a Wall. Map ----- +----------------------------------------------------+ | ###??##?#?# ###????# #????# !! ""# | | ####??### ! #??????# #????# """### | | ###?#???# [ #######??????# #????#% """#?# | | #??#?#####+#####?????????# #????# "" #?# | | ! ###??# #?????????## ##????# """#?# | | #?##?# #??????????# #?????# ""#?#%= | | ######?# #??????????# #?????# """#?# # | | # ### #??????????# #?????# ] " #?# # | | # ### / #?#####????# #?????# #?#!# | | + #?# " "" ###!!!!#???# #?????########?#=# | | #% #?# "R"" ##! !#??# #??????????????# # | | # #?# """ ## #??# #??????????????# # | | # #############???# #### #??????????????# # | | # ####?##??#??????# #??????????????# # | | # ##??###?##??????# #??????????????# # | | # ##?##?###?#?????# """ #??????????????# # | | #+####?###?####??????# """ #??????????????# # | | # #?#?##?##?##???????# """ ##??????????????# # | | #=##?#?#?####?#??????##^ #???????????????# # | | # ##?#?##?##? ???????# #??????########## # | | # ##?#?##?#?? ????????# #??????# ## # | | # ###?###?##?? ???????#![ #??????# """ ## # | | ###?##?#??# ????????#! #??????# """ ## # | | #+#### ??????????#! ! #??????# """ ## # | | #? ?? ? "???????# ! +??????# # | | ## ???????????# @ #??????# + | | #?????????????????# #??????# = # | | #? ?" #?????????#% = #??????# #### | | #? ?"??????????? %! +??????# "T" ## | | ##?"???????????? *%#??????# """ ## | | ## ?????#?????? u =%%#??????# ## | | ## ""????????? ;#/#####/##??????########## | | #????????????#gg # ????? "???????????????# | | #####???????????#; % # ?????? #??????????????# | | ??#??????? ?????## ?# ?????? ##??????????????# | | ?????? ??????????# ?# ???????#???????????????# | | ?#???????????????# ??#""???????????????????????# | | ?????????????????#???#"T???????????????????????### | | ?????????????????????????????????????????????????? | | ?????????????????????????????????????????????????? | | ?????????????????????????????????????????????????? | | ?????????????????????????????????????????????????? | | ?????????????????????????????????????????????????? | | | | | | | | | | | | | | | +----------------------------------------------------+ Best States ------------- Heat Dissipation 45 Energy Generation 14 Energy Capacity 265 Matter Stores 300 Matter Capacity 300 Sight Range 20 Robot Scan Range 20 Terrain Scan Range 16 Terrain Scan Density 85 EM Shielding 2 Armor Coverage 750 Resistance: KI 20 Resistance: TH 10 Weapon Cycling 15 Evasion (%) 55 Recoil Reduction 6 Offensive Hacking 10 Item Schematics ----------------- None Robot Schematics ------------------ None Fabricated ------------ Nothing Alien Tech Used ----------------- None Achievements -------------- None Challenges ------------ None Game ------ Seed MetaGammaShifter Manual? 0 Play Time 00:34:02 Cumulative 78.9 hours Start 2024.06.10 @ 11:01:40 End 2024.06.10 @ 12:02:16 Sessions 1 Manual Loads 0 Difficulty Rogue Special Mode None Game No. 86 Rogue 80 Adventurer 6 Explorer 0 Win Type - Total 0 Types 0/0/0/0/0/0/0/0/0 Lore% 34 Gallery% 50 Achievement% 37 Wizard Run 0 Options --------- Layout 0 ASCII 0 Keyboard 1 Movement Numpad Keybinds 0 Fullscreen 0 Font 14/Smallcaps Map View 76x50 Zoom Use 0% Tactical HUD 1 Map Filters NONE Filters NONE Steam 1 RUN: e03d08bb-b5de-4f89-bfbf-a6fb86a57099